bitfinex/quotes_ETHUSD_20260106
["timestamp","ask_amount","ask_price","bid_price","bid_amount"]
[1767677979531,0.001,3216.9,3216.1,1.77296382]
[1767677980353,1.3848046,3216.9,3216.1,0.95796382]
[1767677980549,0.97533143,3216.8,3215.5,0.95796382]
[1767677980858,1.06857297,3216.6,3215.5,0.95796382]
[1767677981060,0.97533143,3216.3,3215.3,0.815]
[1767677981376,0.97533143,3216.3,3215.3,1.77296382]
[1767677981735,0.97533143,3216.3,3215.5,3.10992627]
[1767677982160,0.97533143,3216.6,3215.6,0.95796382]
[1767677982975,4.08422399,3216.6,3215.6,0.95796382]
[1767677983180,0.4084224,3216.5,3215.6,4.06780249]
[1767677984402,0.97533143,3216.4,3215.6,0.95796382]
[1767677984697,0.97533143,3216.4,3215.6,4.06776755]
[1767677984908,0.4084224,3216.5,3215.7,0.95796382]
[1767677985059,0.97533143,3216.7,3215.7,0.98906124]
[1767677985506,0.815,3216.8,3215.7,0.98906124]
[1767677985961,3.92368582,3216.8,3215.7,0.98906124]
[1767677986162,0.815,3216.8,3215.7,0.98906124]
[1767677986378,3.9236889,3216.8,3215.7,0.98906124]
[1767677986597,0.39246889,3216.7,3215.7,0.98906124]
[1767677986799,0.39246889,3216.7,3215.7,0.95796382]
[1767677986800,3.501295,3216.7,3215.7,0.95796382]
[1767677987302,3.501295,3216.7,3215.8,0.95796382]
[1767677988882,0.001,3216.5,3215.8,0.95796382]
[1767677989064,0.3512295,3216.5,3215.8,0.95796382]
[1767677991791,0.97533143,3216.4,3215.7,0.815]
[1767677992313,0.3512295,3216.5,3215.8,0.95796382]
[1767677993000,0.3512295,3216.5,3215.8,0.92254442]
[1767677993912,0.443544,3216.4,3215.8,0.92254442]
[1767677994291,0.3512295,3216.5,3215.8,0.92254442]
[1767677995812,1.35280491,3216.5,3215.8,0.92254442]
[1767677996227,1.00157541,3216.4,3215.6,0.815]
[1767677996390,0.001,3216.5,3215.8,0.94780224]
[1767677996717,0.001,3216.5,3215.9,0.94780224]
[1767677996891,0.001,3216.5,3215.9,0.97889773]
[1767677998015,0.001,3216.5,3215.9,0.94780224]
[1767677998238,0.41213832,3216.5,3215.9,0.94780224]
[1767678000623,4.52270355,3216.5,3215.7,0.94780224]
[1767678001719,4.52270355,3216.5,3215.5,0.815]
[1767678001720,0.92975626,3216.4,3215.5,0.815]
[1767678002218,0.93075626,3216.2,3215.5,0.815]
[1767678002823,0.93075626,3216.2,3215.4,1.00486432]
[1767678003032,0.92975626,3216.1,3215.3,1.82186432]
[1767678003205,0.92975626,3215.9,3215.3,0.817]
[1767678003725,0.92975626,3215.9,3215.3,0.002]
[1767678004590,0.92975626,3215.9,3215.4,3.11003274]
[1767678005094,0.92975626,3215.9,3215.3,0.002]
[1767678013929,0.92975626,3215.9,3215.6,0.002]
[1767678014229,1.33367717,3215.8,3215.6,0.002]
[1767678014903,0.92975626,3215.8,3215.6,0.002]
[1767678016031,0.92975626,3215.7,3215.6,0.002]
[1767678018250,4.03931469,3215.9,3215.6,0.002]
[1767678018605,4.03931469,3215.9,3215.0,0.00036171]
[1767678018606,0.92975626,3215.8,3215.0,0.00036171]
[1767678018817,1.64464357,3215.7,3215.0,0.00036171]
[1767678019230,0.92975626,3215.6,3215.0,0.00036171]
[1767678019444,0.71488731,3215.7,3215.0,1.00522603]
[1767678025111,3.82463027,3215.7,3215.0,1.00522603]
[1767678025512,0.71488731,3215.7,3215.0,1.00522603]
[1767678025833,0.92975626,3215.8,3215.0,1.00522603]
[1767678026017,0.92975626,3215.8,3215.0,0.98937268]
[1767678026219,4.03947071,3215.8,3215.0,0.98937268]
[1767678027065,0.001,3215.4,3215.0,0.98937268]
[1767678035749,0.001,3215.4,3214.6,1.7329714]
[1767678035750,0.97114426,3215.4,3214.6,1.7329714]
[1767678035951,0.97014426,3215.0,3214.2,0.9179714]
[1767678036155,1.78514426,3215.0,3214.2,0.9179714]
[1767678036457,0.97014426,3214.9,3214.0,0.9199714]
[1767678036752,0.09324154,3214.7,3214.0,0.002]
[1767678037044,0.97014426,3214.6,3214.0,0.002]
[1767678039446,0.97014426,3214.6,3214.0,0.9199714]
[1767678040737,0.97014426,3214.6,3214.0,0.002]
[1767678040936,0.97014426,3214.5,3214.0,0.002]
[1767678041157,0.40809706,3214.4,3214.0,0.002]
[1767678042438,0.97014426,3214.5,3214.0,0.002]
[1767678044364,4.17410707,3214.7,3214.0,0.002]
[1767678044571,0.97014426,3214.6,3214.0,0.002]
[1767678046582,4.17434564,3214.5,3214.0,0.002]
[1767678047997,1.14865869,3214.8,3214.0,0.9199714]
[1767678048154,4.25927267,3214.8,3214.0,0.9199714]
[1767678048347,0.42592727,3214.7,3214.0,0.9199714]
[1767678050285,0.42592727,3214.7,3214.0,0.95108527]
[1767678050660,0.42592727,3214.7,3214.3,0.002]
[1767678052385,0.17851443,3214.8,3214.3,0.002]
[1767678053458,3.28913677,3214.8,3214.3,0.002]
[1767678053657,0.17851443,3214.8,3214.3,0.002]
[1767678055183,3.28913183,3214.8,3214.3,0.002]
[1767678055688,0.17851443,3214.8,3214.3,0.002]
[1767678055892,1.41270705,3214.7,3214.3,0.002]
[1767678058093,0.99297419,3214.6,3214.0,0.002]
[1767678058271,0.99297419,3214.6,3214.0,0.97292938]
[1767678059890,0.99297419,3214.6,3214.0,0.002]
[1767678059891,0.99297419,3214.5,3214.0,0.002]
[1767678060091,0.99297419,3214.4,3214.0,0.002]
[1767678060787,0.99297419,3214.0,3213.2,0.97092938]
[1767678061201,0.99297419,3214.0,3213.3,1.00343675]
[1767678061368,0.93034136,3214.3,3213.4,1.00343675]
[1767678061569,1.1048755,3214.2,3213.4,1.03453617]
[1767678061785,1.1048755,3214.2,3213.4,4.11540517]
[1767678061987,1.1048755,3214.2,3213.4,1.00343675]
[1767678062195,0.93034136,3214.1,3213.2,4.11556678]
[1767678062795,0.93034136,3214.1,3213.3,3.11205184]
[1767678063002,1.35194144,3214.1,3213.4,1.03455643]
[1767678063181,1.35194144,3214.1,3213.5,1.00343675]
[1767678063493,0.92834136,3214.1,3213.5,1.00543675]
[1767678064098,0.17453414,3214.2,3213.5,1.00543675]
[1767678064278,0.815,3214.4,3213.7,1.00343675]
[1767678064642,3.92600092,3214.4,3213.7,1.00343675]
[1767678064809,1.74534136,3214.4,3213.7,1.00343675]
[1767678065172,1.74534136,3214.4,3213.8,0.03111581]
[1767678065371,1.74534136,3214.4,3213.7,1.00343675]
[1767678065571,5.34197121,3214.4,3213.7,1.00343675]
[1767678065767,2.23096739,3214.4,3213.7,1.00343675]
[1767678065997,1.74534136,3214.4,3213.7,1.00343675]
[1767678066499,4.8563895,3214.4,3213.7,1.00343675]
[1767678067015,1.74534136,3214.4,3213.7,1.00343675]
[1767678067169,3.92602841,3214.4,3213.7,1.00343675]
[1767678067523,0.93034136,3214.3,3213.5,1.00543675]
[1767678067673,0.48563698,3214.2,3213.5,1.00543675]
[1767678068691,0.93034136,3214.3,3213.5,1.00543675]
[1767678069200,0.93034136,3214.3,3213.6,1.00343675]
[1767678070296,0.815,3214.4,3213.6,1.00343675]
[1767678070695,0.93034136,3214.3,3213.6,3.11172118]
[1767678070903,0.93034136,3214.3,3213.7,1.00343675]
[1767678071804,0.93034136,3214.3,3213.5,0.002]
[1767678072005,0.93034136,3214.3,3213.5,1.00543675]
[1767678072211,0.93034136,3214.2,3213.5,0.002]
[1767678075217,0.93034136,3214.2,3213.5,1.00543675]
[1767678077911,0.001,3214.1,3213.8,0.002]
[1767678079113,0.48563427,3214.3,3213.8,1.00543675]
[1767678079313,1.22090416,3214.4,3213.8,1.03655256]
[1767678079515,1.22090416,3214.4,3213.8,1.00543675]
[1767678080815,0.93034136,3214.3,3213.8,0.002]
[1767678081212,0.2905628,3214.4,3213.9,1.00343675]
[1767678083219,0.93034136,3214.3,3213.8,0.002]
[1767678084108,0.93034136,3214.2,3213.8,0.002]
[1767678084491,0.2905628,3214.4,3213.8,0.002]
[1767678084820,0.93034136,3214.2,3213.8,0.002]
[1767678086727,0.43318473,3214.3,3213.8,0.002]
[1767678089899,0.43318473,3214.3,3214.1,0.002]
[1767678090417,0.43318473,3214.3,3213.8,0.002]
[1767678090615,0.43318473,3214.3,3213.8,1.00543675]
[1767678090801,1.22090416,3214.4,3213.8,1.00543675]
[1767678091936,1.22090416,3214.4,3213.8,1.00187909]
[1767678100206,0.9842672,3214.3,3213.6,3.11175939]
[1767678100398,0.9842672,3214.3,3213.5,7.75626465]
[1767678101303,0.9842672,3214.3,3213.6,0.96584346]
[1767678102334,0.9842672,3214.3,3213.6,2.14924145]
[1767678102836,0.001,3214.1,3213.6,5.26098298]
[1767678103134,0.9842672,3214.3,3213.6,4.29513952]
[1767678104135,0.9842672,3214.3,3213.6,1.18339799]
[1767678104648,0.9842672,3214.3,3213.6,4.295165]
[1767678104831,0.9842672,3214.3,3213.7,0.8939597]
[1767678105636,0.9842672,3214.3,3213.7,4.00560154]
[1767678105840,0.61445326,3214.6,3213.9,0.96584346]
[1767678106041,4.02618795,3214.7,3213.9,0.96584346]
[1767678106214,0.61427875,3214.6,3213.9,0.96584346]
[1767678107745,3.72514115,3214.6,3213.9,0.96584346]
[1767678108261,0.001,3215.1,3214.4,0.96584346]
[1767678108416,3.11047213,3215.0,3214.4,0.96584346]
[1767678108755,0.001,3215.1,3214.4,0.96584346]
[1767678109560,0.001,3215.4,3214.9,0.96584346]
[1767678112470,0.69250122,3215.3,3214.5,0.96584346]
[1767678112749,0.09324154,3215.1,3214.2,0.96584346]
[1767678112953,0.09324154,3215.1,3214.3,0.96584346]
[1767678116552,0.09324154,3215.1,3214.6,0.002]
[1767678116954,0.09424154,3215.1,3214.6,0.002]
[1767678117353,0.001,3215.1,3214.6,0.97169316]
[1767678117527,0.001,3215.1,3214.6,0.002]
[1767678117528,0.60025968,3215.1,3214.6,0.002]
[1767678117854,0.98062365,3215.1,3214.6,0.002]
[1767678120056,4.0909708,3215.1,3214.6,0.002]
[1767678120350,0.59925968,3215.0,3214.6,0.002]
[1767678120551,0.59925968,3215.0,3214.3,0.002]
[1767678121058,6.69529981,3215.1,3214.3,0.002]
[1767678121059,0.59725968,3214.8,3214.3,0.002]
[1767678121248,0.59725968,3214.8,3213.6,0.90908856]
[1767678121249,0.59725968,3214.7,3213.6,0.90908856]
[1767678121452,0.59725968,3214.7,3213.5,1.72608856]
[1767678121843,0.59725968,3214.5,3213.5,4.83791828]
[1767678122239,0.59725968,3214.5,3213.7,0.96641078]
[1767678123043,0.59725968,3214.5,3213.8,0.96641078]
[1767678123367,0.09324154,3214.6,3213.8,0.96641078]
[1767678123849,3.20405425,3214.6,3213.8,0.96641078]
[1767678124051,0.09324154,3214.8,3213.9,0.96641078]
[1767678124233,0.09324154,3214.8,3214.1,0.96641078]
[1767678124434,0.69050122,3215.0,3214.1,0.96641078]
[1767678124765,1.19636397,3215.1,3214.2,0.96641078]
[1767678124948,0.816,3215.1,3214.2,0.96641078]
[1767678125263,3.92636035,3215.1,3214.2,0.96641078]
[1767678125564,4.01960189,3215.1,3214.2,0.96641078]
[1767678126758,7.72722192,3215.1,3214.2,0.96641078]
[1767678126957,0.59725968,3215.0,3214.2,0.96641078]
[1767678127261,3.70787309,3214.8,3214.0,0.87204234]
[1767678127460,3.70787309,3214.8,3214.0,0.96641078]
[1767678129766,0.59725968,3214.8,3214.0,0.96641078]
[1767678129967,0.09324154,3214.9,3214.1,0.96641078]
[1767678130734,3.20378774,3214.9,3214.1,0.96641078]
[1767678131273,3.20378774,3214.9,3214.3,0.002]
[1767678131443,3.98585171,3214.9,3214.3,0.002]
[1767678131641,0.001,3214.8,3214.3,0.002]
[1767678133375,0.59825968,3214.8,3214.3,0.002]
[1767678138376,0.001,3214.8,3214.3,0.96841078]
[1767678144695,0.816,3215.1,3214.7,0.96641078]
[1767678144853,1.2179514,3215.1,3214.7,0.96641078]
[1767678146693,0.4029514,3215.1,3214.7,0.96641078]
[1767678147268,0.001,3215.1,3214.7,0.96641078]
[1767678147780,0.001,3215.1,3214.4,0.96641078]
[1767678148963,0.001,3215.1,3214.5,0.96641078]
[1767678155718,0.001,3215.1,3214.5,0.9647093]
[1767678156324,0.001,3215.1,3214.6,0.97676291]
[1767678159122,0.59996116,3215.1,3214.4,0.97676291]
[1767678159423,0.59996116,3215.1,3214.4,1.38575703]
[1767678160528,0.001,3214.8,3214.4,1.38575703]
[1767678161732,0.001,3214.8,3214.5,0.97676291]
[1767678162427,0.001,3214.8,3214.3,0.97876291]
[1767678164827,0.59996116,3214.8,3214.3,0.002]
[1767678165033,0.6922027,3214.7,3214.3,0.002]
[1767678165227,0.6922027,3214.7,3214.0,0.002]
[1767678165535,0.6902027,3214.5,3214.0,0.002]
[1767678167636,0.59696116,3214.4,3214.0,0.002]
[1767678168236,0.59796116,3214.8,3214.0,0.97876291]
[1767678168411,3.70768628,3214.7,3214.0,0.97876291]
[1767678168608,0.96782979,3214.6,3214.0,0.97876291]
[1767678168932,0.96782979,3214.6,3214.0,0.002]
[1767678169764,0.37086863,3214.6,3214.0,0.97876291]
[1767678170231,0.6912027,3214.8,3214.0,0.97876291]
[1767678170531,3.11072837,3214.7,3214.0,0.97876291]
[1767678173509,3.11072837,3214.7,3214.3,0.002]
[1767678173928,3.80185436,3214.8,3214.3,0.002]
[1767678180647,0.001,3214.8,3214.4,0.90277043]
[1767678180851,0.001,3214.8,3214.4,0.89574826]
[1767678181323,3.11162045,3214.8,3214.4,0.89574826]
[1767678182348,3.74314888,3214.8,3214.4,0.89574826]
[1767678182758,3.74314888,3214.8,3214.3,0.002]
[1767678183122,3.74314888,3214.8,3214.3,0.93068775]
[1767678183329,6.85376933,3214.8,3214.3,0.93068775]
[1767678183539,3.74314888,3214.8,3214.3,0.93068775]
[1767678184361,0.68536964,3214.7,3214.3,0.93068775]
[1767678185660,0.001,3214.8,3214.3,0.93068775]
[1767678185859,3.11162359,3214.8,3214.3,0.93068775]
[1767678186263,3.11162359,3214.8,3214.3,0.92988614]
[1767678188056,0.001,3214.8,3214.3,0.92988614]
[1767678188261,0.38226906,3214.8,3214.3,0.92988614]
[1767678190946,3.11071017,3214.7,3214.3,0.92988614]
[1767678192541,6.22142034,3214.7,3214.3,0.00119839]
[1767678193070,3.11071017,3214.7,3214.3,0.00119839]
[1767678193966,3.20395171,3214.7,3214.3,0.00119839]
[1767678194139,0.66968489,3214.6,3214.3,0.00119839]
[1767678195164,0.66968489,3214.6,3214.3,0.92988614]
[1767678195457,0.38226906,3214.8,3214.3,0.92988614]
[1767678195458,0.001,3214.8,3214.3,0.92988614]
[1767678199875,0.001,3215.1,3214.9,0.92868775]
[1767678200074,0.09324154,3215.9,3215.3,0.92868775]
[1767678200243,0.815,3215.8,3215.3,0.92868775]
[1767678200442,0.69860068,3216.1,3215.2,0.92868775]
[1767678200682,0.001,3216.2,3215.1,0.92868775]
[1767678200983,0.98723105,3216.2,3215.2,0.92868775]
[1767678201466,4.09650675,3216.2,3215.2,0.92868775]
[1767678201977,0.69860068,3216.1,3215.2,0.92868775]
[1767678203170,0.69860068,3216.1,3215.2,4.0389098]
[1767678203472,0.69860068,3216.1,3215.3,0.92868775]
[1767678204153,1.12689966,3216.1,3215.3,0.92868775]
[1767678205573,0.42829898,3216.1,3215.4,0.92868775]
[1767678205777,0.001,3216.2,3215.4,0.92868775]
[1767678207656,0.001,3216.2,3215.5,0.92868775]
[1767678209875,0.001,3216.2,3215.6,0.92868775]
[1767678210579,0.001,3216.2,3215.7,0.92868775]
[1767678210877,0.60635914,3216.2,3215.6,0.40386069]
[1767678211379,0.001,3216.2,3215.6,0.92809309]
[1767678212978,0.001,3215.9,3215.6,0.92809309]
[1767678213179,0.60635914,3216.2,3215.4,3.11001144]
[1767678213485,0.60635914,3216.2,3215.4,4.03810453]
[1767678213679,0.60635914,3216.2,3215.4,0.92809309]
[1767678213877,0.60635914,3216.2,3215.5,0.48531437]
[1767678214400,0.60635914,3216.2,3215.6,0.815]
[1767678215872,0.001,3216.2,3215.7,0.92809309]
[1767678217082,0.60535914,3216.1,3215.6,0.815]
[1767678217781,0.60535914,3216.1,3215.2,4.03830714]
[1767678217953,0.60535914,3216.0,3215.3,1.21883071]
[1767678218661,0.60535914,3216.0,3215.3,0.40383071]
[1767678218865,0.60535914,3216.0,3215.4,0.815]
[1767678219183,0.60535914,3216.0,3215.5,0.815]
[1767678220460,0.60535914,3215.9,3215.5,0.815]
[1767678220665,3.10946623,3216.0,3215.5,0.815]
[1767678220862,4.39733498,3216.0,3215.0,3.11038957]
[1767678221070,0.60535914,3215.9,3215.1,1.74309309]
[1767678221384,0.60535914,3215.9,3215.2,0.92809309]
[1767678222364,0.68250961,3216.0,3215.2,0.92809309]
[1767678222570,3.71569115,3216.2,3215.3,0.92809309]
[1767678223171,6.82502316,3216.2,3215.3,0.92809309]
[1767678223468,0.60535914,3216.1,3215.3,0.92809309]
[1767678224378,3.10945273,3216.0,3215.3,0.92809309]
[1767678224884,3.10945273,3216.0,3215.5,0.002]
[1767678225079,3.79196712,3216.0,3215.5,0.002]
[1767678225280,0.001,3215.9,3215.5,0.002]
[1767678227586,0.001,3215.9,3215.3,0.92809309]
[1767678227587,0.6083672,3215.9,3215.3,0.92508302]
[1767678227890,0.6083672,3215.9,3215.1,0.817]
[1767678228091,0.60836921,3215.7,3215.1,0.817]
[1767678228291,0.75097871,3215.8,3215.2,0.92809309]
[1767678228797,3.86063476,3215.8,3215.2,0.92809309]
[1767678229878,4.46900397,3215.8,3215.1,0.817]
[1767678230078,0.60836921,3215.7,3215.1,0.817]
[1767678230484,3.86063476,3215.8,3215.1,1.74509309]
[1767678230681,0.38616348,3215.7,3215.1,1.74509309]
[1767678230904,3.11056207,3215.9,3215.2,0.92809309]
[1767678231690,0.001,3215.9,3215.2,0.92809309]
[1767678231889,3.11055925,3215.9,3215.2,0.92809309]
[1767678232368,3.71892846,3215.9,3215.2,0.92809309]
[1767678232867,3.11055925,3215.9,3215.2,0.92809309]
[1767678233073,3.79339755,3215.9,3215.2,0.92809309]
[1767678238275,0.001,3215.6,3215.2,0.92809309]
[1767678240698,0.001,3215.6,3215.3,0.9979921]
[1767678246874,0.001,3215.6,3215.1,1.00059682]
[1767678247071,0.001,3215.6,3215.1,1.81559682]
[1767678249900,0.001,3215.3,3215.1,1.81559682]
[1767678250101,0.001,3215.6,3215.3,0.84328454]
[1767678250685,0.001,3215.6,3215.1,1.00059682]
[1767678250878,0.09324154,3215.5,3215.1,1.00059682]
[1767678256006,3.20319149,3215.5,3215.1,1.00059682]
[1767678256188,0.09324154,3215.5,3215.1,1.00059682]
[1767678261812,0.001,3215.3,3215.1,1.00059682]
[1767678263578,0.001,3215.3,3215.0,0.815]
[1767678264995,0.001,3215.3,3215.0,1.81359682]
[1767678269328,0.001,3215.3,3215.0,0.99859682]
[1767678271324,0.001,3215.3,3214.9,0.815]
[1767678273636,0.001,3215.3,3214.8,0.92784569]
[1767678273791,0.001,3215.3,3215.2,0.002]
[1767678273992,0.001,3215.3,3214.9,0.002]
[1767678274193,0.09424154,3215.3,3214.9,0.002]
[1767678276419,4.61991256,3215.3,3214.6,0.92984569]
[1767678276724,1.08031071,3215.1,3214.6,0.002]
[1767678276929,0.09324154,3214.9,3214.6,0.002]
[1767678278708,4.1907034,3215.1,3214.6,0.002]
[1767678280925,4.97306636,3215.1,3214.6,0.002]
[1767678284215,0.78236296,3215.1,3214.6,0.92984569]
[1767678284419,3.1103057,3215.2,3214.6,0.92984569]
[1767678285631,4.09737487,3215.2,3214.6,0.002]
[1767678286927,4.09737487,3215.2,3214.9,0.002]
[1767678287229,0.001,3215.0,3214.9,0.002]
[1767678296645,0.001,3215.0,3214.6,0.002]
[1767678297214,3.1114199,3215.0,3214.6,0.002]
[1767678297428,3.83826267,3215.0,3214.6,0.002]
[1767678297741,4.79167784,3215.0,3214.6,0.002]
[1767678300339,1.04665671,3214.9,3214.3,0.00119839]
[1767678300749,1.04665671,3214.7,3214.0,0.002]
[1767678301046,1.04665671,3214.7,3213.7,0.98845791]
[1767678301047,1.04665671,3214.5,3213.7,0.98845791]
[1767678301246,1.04665671,3214.5,3213.7,1.80345791]
[1767678301447,4.02762336,3214.4,3213.7,1.80345791]
[1767678301823,3.2039596,3214.7,3213.8,0.91910072]
[1767678302013,3.11075133,3214.7,3213.8,0.91910072]
[1767678303549,3.1114199,3215.0,3213.8,0.91910072]
[1767678303842,6.31508134,3215.0,3213.8,0.91910072]
[1767678305056,1.00986441,3214.8,3214.0,0.91910072]
[1767678305355,1.00986441,3214.8,3214.1,0.815]
[1767678305520,6.22142034,3214.7,3214.1,0.815]
[1767678305925,6.22142034,3214.7,3214.1,1.73410072]
[1767678307220,3.11071017,3214.7,3214.1,1.73410072]
[1767678307424,3.59842249,3214.7,3214.2,0.91910072]
[1767678312768,3.59942249,3214.7,3214.2,0.91910072]
[1767678314266,6.71013266,3214.7,3214.1,0.815]
[1767678314466,7.62675553,3214.7,3214.1,0.815]
[1767678314764,7.62675553,3214.7,3214.1,0.91910072]
[1767678314964,3.8828811,3214.6,3214.1,0.91910072]
[1767678315172,3.8828811,3214.6,3214.0,0.815]
[1767678315665,3.8828811,3214.6,3214.0,1.73410072]
[1767678316868,3.8828811,3214.6,3214.1,0.91910072]
[1767678317071,6.99376249,3214.6,3214.1,0.91910072]
[1767678317274,0.74824748,3214.5,3214.1,0.91910072]
[1767678317562,3.11088139,3214.6,3214.1,0.91910072]
[1767678319165,3.59946868,3214.7,3214.1,0.91910072]
[1767678319670,7.62684791,3214.7,3214.1,0.91910072]
[1767678320349,4.51609155,3214.7,3214.1,0.91910072]
[1767678322941,3.59946868,3214.7,3214.1,0.91910072]
[1767678323662,6.71022504,3214.7,3214.1,0.91910072]
[1767678323865,0.68034666,3214.6,3214.1,0.91910072]
[1767678324789,0.001,3214.4,3214.1,0.91910072]
[1767678325968,0.91762287,3214.4,3213.7,0.91910072]
[1767678326142,0.91762287,3214.4,3213.7,1.73410072]
[1767678326340,1.63069247,3214.4,3213.7,1.73410072]
[1767678327076,3.11109728,3214.3,3213.7,1.73410072]
[1767678327402,3.82511608,3214.4,3213.8,0.91910072]
[1767678327569,3.11204648,3214.4,3213.8,0.91910072]
[1767678327869,0.001,3214.4,3213.8,0.91910072]
[1767678328974,3.11200199,3214.4,3213.8,0.91910072]
[1767678329268,0.001,3214.4,3213.8,0.91910072]
[1767678331079,6.22180742,3214.5,3213.8,0.91910072]
[1767678331080,6.16061844,3214.5,3213.8,0.91910072]
[1767678332046,6.92653796,3214.5,3213.8,0.91910072]
[1767678332248,0.09324154,3214.4,3213.8,0.91910072]
[1767678332449,1.00949697,3214.4,3213.8,0.91910072]
[1767678332751,1.00949697,3214.4,3213.7,0.815]
[1767678333767,4.1205633,3214.4,3213.6,0.92589488]
[1767678334078,4.1205633,3214.4,3213.7,1.73889488]
[1767678334282,4.1205633,3214.4,3213.7,0.92389488]
[1767678334663,4.1205633,3214.4,3213.7,1.73889488]
[1767678335381,4.1205633,3214.4,3213.7,1.91318437]
[1767678336080,7.23162963,3214.4,3213.7,1.91318437]
[1767678337355,7.23262963,3214.4,3213.7,1.73889488]
[1767678340585,4.1215633,3214.4,3213.7,1.73889488]
[1767678341186,7.23262963,3214.4,3213.7,1.73889488]
[1767678343359,4.1215633,3214.4,3213.7,1.73889488]
[1767678343691,0.91625543,3214.3,3213.7,0.815]
[1767678343999,0.91625543,3214.3,3213.7,0.92389488]
[1767678344161,0.91625543,3214.2,3213.7,0.815]
[1767678346306,3.11129087,3214.1,3213.7,0.815]
[1767678347110,3.11129087,3214.1,3213.6,0.002]
[1767678347285,4.0275463,3214.1,3213.6,0.817]
[1767678348299,3.11129087,3214.1,3213.6,0.817]
[1767678348603,3.11129087,3214.1,3213.6,1.74089488]
[1767678349403,3.11129087,3214.1,3214.0,0.002]
[1767678350406,3.11119407,3214.2,3214.0,0.002]
[1767678353812,6.22238814,3214.2,3214.0,0.002]
[1767678354405,3.11119407,3214.2,3214.0,0.002]
[1767678355000,6.22238814,3214.2,3214.0,0.002]
[1767678356511,0.91692868,3214.1,3214.0,0.002]
[1767678357513,0.91692868,3214.1,3213.6,0.81499194]
[1767678358021,0.91692868,3214.0,3213.6,0.81499194]
[1767678358181,3.11132974,3214.1,3213.7,0.96202219]
[1767678360415,6.22219456,3214.3,3213.7,0.96202219]
[1767678361115,6.22219456,3214.3,3213.9,0.002]
[1767678361316,6.94553104,3214.3,3213.9,0.002]
[1767678365113,3.83443376,3214.3,3213.9,0.95159704]
[1767678365291,3.11109728,3214.3,3213.9,0.95159704]
[1767678366183,6.22219456,3214.3,3213.9,0.95159704]
[1767678367288,0.001,3214.4,3213.9,0.95159704]
[1767678369216,0.001,3214.4,3213.6,1.76458898]
[1767678369217,1.05557024,3214.4,3213.6,1.76458898]
[1767678369520,6.22219456,3214.3,3213.6,1.76458898]
[1767678370323,3.11109728,3214.3,3213.6,1.94124788]
[1767678370619,4.07337287,3214.4,3213.7,0.94959704]
[1767678370815,7.18441704,3214.4,3213.7,0.94959704]
[1767678373193,0.001,3214.1,3213.7,0.94959704]
[1767678373624,0.001,3214.1,3213.8,0.815]
[1767678375890,0.001,3214.1,3213.7,0.94959704]
[1767678376201,0.001,3214.1,3213.7,1.76459704]
[1767678377329,0.001,3214.1,3213.7,0.815]
[1767678377623,0.9623287,3214.1,3213.5,0.002]
[1767678378615,0.9613287,3213.9,3213.5,0.002]
[1767678379527,3.11138767,3214.0,3213.5,0.95159704]
[1767678380695,3.11229087,3214.1,3213.5,0.95159704]
[1767678381128,0.001,3214.1,3213.5,0.95159704]
[1767678385712,0.001,3213.8,3213.5,0.95159704]
[1767678392739,0.001,3213.8,3213.5,0.002]
[1767678397851,0.001,3213.7,3213.5,0.002]
[1767678409068,0.001,3213.7,3213.5,0.0331187]
[1767678409240,0.001,3213.7,3213.5,0.002]
[1767678409435,0.001,3213.7,3213.5,0.03311869]
[1767678415667,0.001,3213.7,3213.5,0.002]
[1767678418469,0.001,3213.7,3213.5,0.92602134]
[1767678420775,0.001,3214.1,3213.7,0.92402134]
[1767678420972,0.001,3214.4,3213.8,0.92402134]
[1767678421137,0.99531209,3214.4,3213.6,0.95820407]
[1767678421341,0.99531209,3214.4,3213.7,0.48870733]
[1767678422439,0.99531209,3214.4,3213.5,3.92886928]
[1767678422440,0.99531209,3214.4,3213.5,0.002]
[1767678422640,0.99431209,3213.8,3213.1,0.002]
[1767678424466,0.99431209,3213.6,3213.1,0.002]
[1767678424667,0.99431209,3213.5,3213.1,0.002]
[1767678424866,0.99431209,3213.4,3213.1,0.002]
[1767678425671,0.99431209,3213.4,3212.7,0.95957988]
[1767678427170,0.99231209,3213.4,3212.7,0.95957988]
[1767678432268,0.89601374,3213.5,3212.7,0.95957988]
[1767678432520,0.89601374,3213.5,3212.8,0.95820407]
[1767678432658,0.89601374,3213.5,3212.9,0.95820407]
[1767678432857,0.89601374,3213.5,3213.0,0.002]
[1767678433056,4.00790671,3213.5,3213.0,0.002]
[1767678433955,5.0022188,3213.5,3213.0,0.002]
[1767678435746,0.99431209,3213.4,3213.0,0.002]
[1767678435947,1.80571226,3213.4,3213.0,0.002]
[1767678436992,0.99431209,3213.3,3213.0,0.002]
[1767678439095,4.10639913,3213.3,3213.0,0.002]
[1767678439247,0.99431209,3213.2,3213.0,0.002]
[1767678440090,0.99431209,3213.3,3213.0,0.002]
[1767678440296,0.99431209,3213.2,3213.0,0.002]
[1767678440503,0.99431209,3213.2,3212.7,0.00137581]
[1767678445938,0.99431209,3213.2,3213.0,0.002]
[1767678446125,0.001,3213.1,3213.0,0.002]
[1767678448348,0.001,3213.1,3212.7,0.00137581]
[1767678449549,0.99431209,3212.9,3212.5,0.002]
[1767678451659,0.44303641,3213.1,3212.5,0.002]
[1767678451952,0.44303641,3213.1,3212.5,0.98041528]
[1767678453852,4.52353478,3213.1,3212.5,0.002]
[1767678454046,1.73181222,3213.0,3212.5,0.002]
[1767678454860,0.96823826,3212.9,3212.5,0.002]
[1767678455855,0.96823826,3212.6,3211.8,0.97841528]
[1767678456060,0.96823826,3212.6,3211.8,1.79341528]
[1767678456474,0.96823826,3212.6,3211.9,0.97841528]
[1767678456876,0.96823826,3212.5,3211.9,0.97841528]
[1767678458094,0.56147059,3212.6,3212.0,0.97841528]
[1767678458250,4.08081535,3212.8,3212.0,0.97841528]
[1767678459284,0.96823826,3212.8,3212.1,0.03113228]
[1767678459478,0.96823826,3212.8,3212.5,0.002]
[1767678464250,4.69094571,3213.0,3212.5,0.002]
[1767678464461,4.84418397,3213.0,3212.5,0.002]
[1767678464679,0.94916516,3212.9,3212.5,0.002]
[1767678464867,0.001,3213.1,3212.5,0.98041528]
[1767678465451,0.96923826,3213.1,3212.5,0.002]
[1767678467605,0.001,3214.4,3212.9,0.97841528]